[Event "*** Titled Tuesday 3|2 Blitz"]
[Site "Chess.com"]
[Date "2014.12.30"]
[Round "6"]
[White "UnPolarizing"]
[Black "Sebastian"]
[Result "1-0"]
[WhiteElo "2251"]
[BlackElo "2530"]
[TimeControl "180+2"]
[EndTime "12:22:20 PST"]
[Termination "UnPolarizing won on time"]

1. e4 {[%clk 0:03:00]} 1... c5 {[%clk 0:02:58.5]} 2. d4 {[%clk 0:03:01.4]} 2...
cxd4 {[%clk 0:02:59.4]} 3. c3 {[%clk 0:03:02.4]} 3... Nf6 {[%clk 0:03:01.1]} 4.
e5 {[%clk 0:03:00.4]} 4... Nd5 {[%clk 0:03:02.4]} 5. Qxd4 {[%clk 0:03:01]} 5...
e6 {[%clk 0:03:02.4]} 6. Nf3 {[%clk 0:03:02.5]} 6... Nc6 {[%clk 0:03:03.1]} 7.
Qe4 {[%clk 0:03:03.7]} 7... f5 {[%clk 0:02:58.5]} 8. Qe2 {[%clk 0:03:04.9]} 8...
Qc7 {[%clk 0:02:59.4]} 9. g3 {[%clk 0:03:04.2]} 9... b5 {[%clk 0:03:00.5]} 10.
Bg2 {[%clk 0:03:04.6]} 10... a5 {[%clk 0:03:00.6]} 11. O-O {[%clk 0:03:02.7]}
11... Ba6 {[%clk 0:02:53.1]} 12. Rd1 {[%clk 0:02:53]} 12... Bc5 {[%clk
0:02:53.1]} 13. Nbd2 {[%clk 0:02:39.4]} 13... O-O {[%clk 0:02:51.2]} 14. Nb3
{[%clk 0:02:38.3]} 14... Bb6 {[%clk 0:02:47.4]} 15. Bg5 {[%clk 0:02:37.9]} 15...
h6 {[%clk 0:02:47.2]} 16. Bh4 {[%clk 0:02:36.4]} 16... a4 {[%clk 0:02:41]} 17.
Nbd4 {[%clk 0:02:30.8]} 17... Nxd4 {[%clk 0:02:37.6]} 18. Nxd4 {[%clk
0:02:29.6]} 18... b4 {[%clk 0:02:38.4]} 19. Qh5 {[%clk 0:02:16.3]} 19... Qxe5
{[%clk 0:02:38.7]} 20. Re1 {[%clk 0:02:15.2]} 20... Qd6 {[%clk 0:02:37.8]} 21.
Rad1 {[%clk 0:02:16.7]} 21... bxc3 {[%clk 0:02:27.5]} 22. bxc3 {[%clk
0:02:18.6]} 22... Rac8 {[%clk 0:02:07.6]} 23. h3 {[%clk 0:01:46.8]} 23... Rxc3
{[%clk 0:01:58.4]} 24. Qg6 {[%clk 0:01:43.6]} 24... Bxd4 {[%clk 0:01:32.3]} 25.
Rxd4 {[%clk 0:01:42.4]} 25... Bb7 {[%clk 0:01:33.1]} 26. Red1 {[%clk 0:01:41]}
26... Qc5 {[%clk 0:01:33.6]} 27. Kh2 {[%clk 0:01:39.3]} 27... Rc1 {[%clk
0:01:31.9]} 28. R1d2 {[%clk 0:01:40.7]} 28... Bc6 {[%clk 0:01:26.3]} 29. g4
{[%clk 0:01:10.2]} 29... Qd6+ {[%clk 0:01:21.8]} 30. Bg3 {[%clk 0:01:09.1]}
30... f4 {[%clk 0:01:18.2]} 31. g5 {[%clk 0:01:10.4]} 31... fxg3+ {[%clk
0:01:11.9]} 32. fxg3 {[%clk 0:01:12.3]} 32... Qe5 {[%clk 0:01:07.7]} 33. gxh6
{[%clk 0:01:06.2]} 33... Qf6 {[%clk 0:01:05.2]} 34. Qxg7+ {[%clk 0:00:50.6]}
34... Qxg7 {[%clk 0:01:05]} 35. hxg7 {[%clk 0:00:52.5]} 35... Kxg7 {[%clk
0:01:06.5]} 36. h4 {[%clk 0:00:52.7]} 36... a3 {[%clk 0:01:00.5]} 37. R4d3
{[%clk 0:00:51.4]} 37... Nf6 {[%clk 0:00:56.4]} 38. Rxa3 {[%clk 0:00:48.7]}
38... Ng4+ {[%clk 0:00:55.2]} 39. Kh3 {[%clk 0:00:47.5]} 39... Nf2+ {[%clk
0:00:56]} 40. Kh2 {[%clk 0:00:45.2]} 40... Ng4+ {[%clk 0:00:56.8]} 41. Kh3
{[%clk 0:00:46.4]} 41... Bxg2+ {[%clk 0:00:57.8]} 42. Kxg2 {[%clk 0:00:46.4]}
42... Ne3+ {[%clk 0:00:58.2]} 43. Rxe3 {[%clk 0:00:45.7]} 43... Rf7 {[%clk
0:00:59.6]} 44. Ree2 {[%clk 0:00:44.2]} 44... Rc3 {[%clk 0:01:00]} 45. Rf2
{[%clk 0:00:27.6]} 45... d5 {[%clk 0:01:00.2]} 46. a4 {[%clk 0:00:25.5]} 46...
Ra3 {[%clk 0:01:00.3]} 47. Rd4 {[%clk 0:00:23.5]} 47... Rxf2+ {[%clk 0:00:58.3]}
48. Kxf2 {[%clk 0:00:25.4]} 48... Kf6 {[%clk 0:00:59.6]} 49. Rf4+ {[%clk
0:00:23.6]} 49... Kg6 {[%clk 0:01:00.8]} 50. g4 {[%clk 0:00:23.2]} 50... e5
{[%clk 0:00:58.6]} 51. Rf5 {[%clk 0:00:21]} 51... Ra2+ {[%clk 0:00:58]} 52. Kg3
{[%clk 0:00:19.8]} 52... Ra3+ {[%clk 0:00:56.6]} 53. Rf3 {[%clk 0:00:20.6]}
53... Rxa4 {[%clk 0:00:56.1]} 54. h5+ {[%clk 0:00:22.2]} 54... Kh6 {[%clk
0:00:55.9]} 55. Rf6+ {[%clk 0:00:21.3]} 55... Kg7 {[%clk 0:00:55.9]} 56. Re6
{[%clk 0:00:17.7]} 56... Re4 {[%clk 0:00:55.1]} 57. g5 {[%clk 0:00:17]} 57... d4
{[%clk 0:00:56.3]} 58. Kf3 {[%clk 0:00:14.5]} 58... Rf4+ {[%clk 0:00:54.9]} 59.
Ke2 {[%clk 0:00:15.5]} 59... Rf5 {[%clk 0:00:50.8]} 60. h6+ {[%clk 0:00:15]}
60... Kf7 {[%clk 0:00:16.4]} 61. h7 {[%clk 0:00:03.6]} 61... Kxe6 {[%clk
0:00:17.7]} 62. h8=Q {[%clk 0:00:05.5]} 62... Rxg5 {[%clk 0:00:17.9]} 63. Qc8+
{[%clk 0:00:04.3]} 63... Kf6 {[%clk 0:00:18.6]} 64. Qc6+ {[%clk 0:00:05.7]}
64... Kf5 {[%clk 0:00:14.6]} 65. Qf3+ {[%clk 0:00:07]} 65... Ke6 {[%clk
0:00:15]} 66. Kd3 {[%clk 0:00:08.1]} 66... Rf5 {[%clk 0:00:11.2]} 67. Qh3 {[%clk
0:00:09.4]} 67... Kf6 {[%clk 0:00:11.3]} 68. Qh6+ {[%clk 0:00:08.7]} 68... Kf7
{[%clk 0:00:07.6]} 69. Qh7+ {[%clk 0:00:08.9]} 69... Ke6 {[%clk 0:00:08.4]} 70.
Qg8+ {[%clk 0:00:08.7]} 70... Kf6 {[%clk 0:00:07.4]} 71. Qf8+ {[%clk 0:00:09.4]}
71... Kg6 {[%clk 0:00:06.9]} 72. Qg8+ {[%clk 0:00:09.9]} 72... Kf6 {[%clk
0:00:08.2]} 73. Qh8+ {[%clk 0:00:08.3]} 73... Kg5 {[%clk 0:00:09]} 74. Qg7+
{[%clk 0:00:07]} 74... Kf4 {[%clk 0:00:03.9]} 75. Qh6+ {[%clk 0:00:05.5]} 75...
Rg5 {[%clk 0:00:03.1]} 76. Qh4+ {[%clk 0:00:04.7]} 1-0

[Event "*** Titled Tuesday 3|2 Blitz"]
[Site "Chess.com"]
[Date "2014.12.30"]
[Round "6"]
[White "David_Klein"]
[Black "Irochka83"]
[Result "1-0"]
[WhiteElo "2368"]
[BlackElo "2275"]
[TimeControl "180+2"]
[EndTime "12:23:43 PST"]
[Termination "David_Klein won by resignation"]

1. e4 {[%clk 0:03:00]} 1... e6 {[%clk 0:02:59]} 2. Qe2 {[%clk 0:02:59.8]} 2...
c5 {[%clk 0:02:54.3]} 3. Nf3 {[%clk 0:02:59.9]} 3... Nc6 {[%clk 0:02:54.7]} 4.
g3 {[%clk 0:03:01]} 4... d6 {[%clk 0:02:51.2]} 5. Bg2 {[%clk 0:03:01.3]} 5...
Nf6 {[%clk 0:02:52.2]} 6. O-O {[%clk 0:03:02.5]} 6... Be7 {[%clk 0:02:53.1]} 7.
c3 {[%clk 0:03:04]} 7... O-O {[%clk 0:02:53.7]} 8. d4 {[%clk 0:03:05.3]} 8...
cxd4 {[%clk 0:02:55.3]} 9. cxd4 {[%clk 0:03:07.2]} 9... d5 {[%clk 0:02:56.9]}
10. e5 {[%clk 0:03:02.5]} 10... Ne4 {[%clk 0:02:58]} 11. Be3 {[%clk 0:03:03.8]}
11... Bd7 {[%clk 0:02:56.1]} 12. Ne1 {[%clk 0:03:04.6]} 12... f5 {[%clk
0:02:51.8]} 13. f3 {[%clk 0:03:03.7]} 13... Ng5 {[%clk 0:02:52.2]} 14. Nc3
{[%clk 0:02:59]} 14... Nf7 {[%clk 0:02:44.8]} 15. Nd3 {[%clk 0:02:57.2]} 15...
Rc8 {[%clk 0:02:14.8]} 16. Rac1 {[%clk 0:02:55.8]} 16... a6 {[%clk 0:01:56.2]}
17. Rc2 {[%clk 0:02:51.5]} 17... Na5 {[%clk 0:01:56]} 18. Rfc1 {[%clk
0:02:49.2]} 18... Nc4 {[%clk 0:01:55]} 19. Bf2 {[%clk 0:02:50.3]} 19... Qa5
{[%clk 0:01:49.9]} 20. f4 {[%clk 0:02:35.7]} 20... Rc6 {[%clk 0:01:10.9]} 21.
Nc5 {[%clk 0:02:18]} 21... Bxc5 {[%clk 0:00:45.8]} 22. dxc5 {[%clk 0:02:19.9]}
22... Rxc5 {[%clk 0:00:43.6]} 23. Bxc5 {[%clk 0:02:17.4]} 23... Qxc5+ {[%clk
0:00:45.5]} 24. Qf2 {[%clk 0:02:18.6]} 24... Qa5 {[%clk 0:00:36]} 25. Ne2 {[%clk
0:02:05.5]} 25... Nd8 {[%clk 0:00:33.2]} 26. b3 {[%clk 0:02:03.6]} 26... Nd2
{[%clk 0:00:30.8]} 27. Nd4 {[%clk 0:01:13.8]} 27... Ne4 {[%clk 0:00:31.1]} 28.
Bxe4 {[%clk 0:01:14.7]} 28... dxe4 {[%clk 0:00:32.1]} 29. Qd2 {[%clk 0:01:11.3]}
29... Qb6 {[%clk 0:00:31.5]} 30. Qe3 {[%clk 0:01:10.7]} 30... Qa5 {[%clk
0:00:23.3]} 31. Kg2 {[%clk 0:00:57.6]} 31... Nc6 {[%clk 0:00:23.6]} 32. Nxc6
{[%clk 0:00:58.6]} 32... Bxc6 {[%clk 0:00:25.5]} 33. Rd2 {[%clk 0:00:59.5]}
33... Bd5 {[%clk 0:00:25.1]} 34. Rcc2 {[%clk 0:00:59.2]} 34... Qd8 {[%clk
0:00:20.8]} 35. h4 {[%clk 0:00:55.8]} 35... h6 {[%clk 0:00:21.1]} 36. Kf2 {[%clk
0:00:55.7]} 36... Qd7 {[%clk 0:00:19.3]} 37. Qb6 {[%clk 0:00:54]} 37... Qe7
{[%clk 0:00:13.4]} 38. Rc7 {[%clk 0:00:48.7]} 38... Qa3 {[%clk 0:00:13.4]} 39.
Qc5 {[%clk 0:00:46.8]} 39... Qxc5+ {[%clk 0:00:13.2]} 40. Rxc5 {[%clk
0:00:48.7]} 40... g5 {[%clk 0:00:13.2]} 41. Ke3 {[%clk 0:00:48.3]} 41... g4
{[%clk 0:00:10.2]} 42. Rdc2 {[%clk 0:00:48.4]} 42... Rd8 {[%clk 0:00:09.2]} 43.
Rc8 {[%clk 0:00:49.2]} 43... Rxc8 {[%clk 0:00:09.2]} 44. Rxc8+ {[%clk
0:00:51.1]} 44... Kf7 {[%clk 0:00:11.1]} 45. Kd4 {[%clk 0:00:52]} 45... Bc6
{[%clk 0:00:11.1]} 46. Rc7+ {[%clk 0:00:53]} 46... Kg8 {[%clk 0:00:11.2]} 47. a4
{[%clk 0:00:53]} 47... Bd5 {[%clk 0:00:12]} 48. b4 {[%clk 0:00:53.9]} 48... Bc6
{[%clk 0:00:12.3]} 49. b5 {[%clk 0:00:46.9]} 49... axb5 {[%clk 0:00:12.7]} 50.
a5 {[%clk 0:00:48]} 50... Bd5 {[%clk 0:00:12.9]} 51. Kc5 {[%clk 0:00:37.9]}
51... e3 {[%clk 0:00:13.4]} 52. Kxb5 {[%clk 0:00:38.8]} 52... e2 {[%clk
0:00:13.7]} 53. Rc1 {[%clk 0:00:40.3]} 53... Bf3 {[%clk 0:00:14.4]} 54. Kb6
{[%clk 0:00:41.4]} 54... Kf7 {[%clk 0:00:15.5]} 55. Kc7 {[%clk 0:00:42.3]} 55...
Ke7 {[%clk 0:00:16.9]} 56. Re1 {[%clk 0:00:42.2]} 56... Ke8 {[%clk 0:00:17.6]}
57. Kd6 {[%clk 0:00:41.3]} 57... Kf7 {[%clk 0:00:18.9]} 58. Kd7 {[%clk
0:00:42.5]} 58... Bc6+ {[%clk 0:00:18.7]} 59. Kd8 {[%clk 0:00:42.5]} 59... Bf3
{[%clk 0:00:19.2]} 60. Rc1 {[%clk 0:00:42.1]} 60... Bd5 {[%clk 0:00:18.1]} 61.
Kd7 {[%clk 0:00:42.2]} 61... Bc6+ {[%clk 0:00:18.5]} 62. Kd6 {[%clk 0:00:43.6]}
62... Bd5 {[%clk 0:00:18.1]} 63. Re1 {[%clk 0:00:33.5]} 63... Bc4 {[%clk
0:00:19.2]} 64. Kd7 {[%clk 0:00:26.2]} 64... Bb5+ {[%clk 0:00:18.5]} 65. Kd8
{[%clk 0:00:27.4]} 65... Bc4 {[%clk 0:00:16.8]} 66. Kc7 {[%clk 0:00:28.5]} 66...
Ba6 {[%clk 0:00:17.3]} 67. Kd6 {[%clk 0:00:29.8]} 67... Bc4 {[%clk 0:00:17.5]}
68. Kc5 {[%clk 0:00:31]} 68... Bd3 {[%clk 0:00:16.6]} 69. Kd4 {[%clk 0:00:30.8]}
69... Ba6 {[%clk 0:00:17.2]} 70. Kc5 {[%clk 0:00:32.7]} 70... Ke7 {[%clk
0:00:18.2]} 71. Kb6 {[%clk 0:00:34]} 71... Kd7 {[%clk 0:00:18.7]} 72. Rc1 {[%clk
0:00:35.3]} 72... Kd8 {[%clk 0:00:17.5]} 73. Kc5 {[%clk 0:00:34.8]} 73... Kc7
{[%clk 0:00:18.6]} 74. Re1 {[%clk 0:00:35.8]} 74... Bd3 {[%clk 0:00:17.4]} 75.
Rc1 {[%clk 0:00:35.6]} 75... Ba6 {[%clk 0:00:18.2]} 76. Ra1 {[%clk 0:00:35.3]}
76... Bd3 {[%clk 0:00:18]} 77. Rg1 {[%clk 0:00:35.3]} 77... Ba6 {[%clk
0:00:18.3]} 78. Re1 {[%clk 0:00:36.5]} 78... Bd3 {[%clk 0:00:18.9]} 79. Kd4
{[%clk 0:00:38]} 79... Ba6 {[%clk 0:00:19.4]} 80. Rc1+ {[%clk 0:00:38.8]} 80...
Kd7 {[%clk 0:00:19.8]} 81. Kc5 {[%clk 0:00:40.2]} 81... Kc7 {[%clk 0:00:20.7]}
82. Kd4+ {[%clk 0:00:38]} 82... Kd7 {[%clk 0:00:21.6]} 83. Ke3 {[%clk 0:00:38]}
83... Bb5 {[%clk 0:00:19.9]} 84. Kd2 {[%clk 0:00:39]} 84... Ba6 {[%clk
0:00:19.4]} 85. Rc5 {[%clk 0:00:40.2]} 85... Kd8 {[%clk 0:00:18.5]} 86. Rc2
{[%clk 0:00:41.2]} 86... Kd7 {[%clk 0:00:19.7]} 87. Rc3 {[%clk 0:00:42.6]} 87...
Bb5 {[%clk 0:00:20.3]} 88. Rb3 {[%clk 0:00:43.8]} 88... Ba6 {[%clk 0:00:20.7]}
89. Rb6 {[%clk 0:00:45.3]} 89... Ke7 {[%clk 0:00:20.2]} 90. Rd6 {[%clk
0:00:46.5]} 90... Bc4 {[%clk 0:00:19.6]} 91. Ke1 {[%clk 0:00:47.8]} 91... Bb5
{[%clk 0:00:19.5]} 92. Rb6 {[%clk 0:00:48.7]} 92... Ba6 {[%clk 0:00:20.7]} 93.
Rb4 {[%clk 0:00:48.6]} 93... Kd7 {[%clk 0:00:20.9]} 94. Rb2 {[%clk 0:00:49.2]}
94... Kc6 {[%clk 0:00:18.5]} 95. Rb6+ {[%clk 0:00:50.3]} 95... Kd7 {[%clk
0:00:17]} 96. Rd6+ {[%clk 0:00:50.8]} 96... Ke7 {[%clk 0:00:18]} 97. Kd2 {[%clk
0:00:47.8]} 97... Bc4 {[%clk 0:00:18.1]} 98. Rd4 {[%clk 0:00:48.5]} 98... Ba6
{[%clk 0:00:18.5]} 99. Rb4 {[%clk 0:00:46.7]} 99... Kd7 {[%clk 0:00:19.2]} 100.
Rb6 {[%clk 0:00:47.3]} 100... Ke7 {[%clk 0:00:19.7]} 101. Rb1 {[%clk 0:00:47.3]}
101... Kd7 {[%clk 0:00:20]} 102. Rc1 {[%clk 0:00:48.8]} 102... Bb5 {[%clk
0:00:19.4]} 103. Ke1 {[%clk 0:00:49.4]} 103... Ba6 {[%clk 0:00:17.8]} 104. Rc2
{[%clk 0:00:50.5]} 104... Bb5 {[%clk 0:00:17.4]} 105. Rd2+ {[%clk 0:00:51.8]}
105... Ke7 {[%clk 0:00:17.8]} 106. Rd6 {[%clk 0:00:52.8]} 106... Ba6 {[%clk
0:00:16]} 107. Kf2 {[%clk 0:00:51.9]} 107... Bc4 {[%clk 0:00:16]} 108. h5 {[%clk
0:00:52.8]} 108... Bb5 {[%clk 0:00:14.3]} 109. Rb6 {[%clk 0:00:53.5]} 109... Ba6
{[%clk 0:00:15.3]} 110. Ke1 {[%clk 0:00:54.5]} 110... Kd7 {[%clk 0:00:15.8]}
111. Rb2 {[%clk 0:00:54.8]} 111... Kc6 {[%clk 0:00:12.6]} 112. Rd2 {[%clk
0:00:55.9]} 112... Bc4 {[%clk 0:00:12.9]} 113. Rd8 {[%clk 0:00:54.6]} 113... Kb5
{[%clk 0:00:05.9]} 114. Rh8 {[%clk 0:00:55.6]} 114... Kxa5 {[%clk 0:00:07.1]}
115. Rxh6 {[%clk 0:00:56.8]} 115... b5 {[%clk 0:00:08.5]} 116. Rh8 {[%clk
0:00:57.8]} 116... b4 {[%clk 0:00:09.8]} 117. Ra8+ {[%clk 0:00:57.3]} 117... Kb5
{[%clk 0:00:09.4]} 118. h6 {[%clk 0:00:56.4]} 118... b3 {[%clk 0:00:05.2]} 119.
Rb8+ {[%clk 0:00:57]} 119... Kc5 {[%clk 0:00:06.2]} 120. Rxb3 {[%clk 0:00:54.5]}
1-0

[Event "*** Titled Tuesday 3|2 Blitz"]
[Site "Chess.com"]
[Date "2014.12.30"]
[Round "7"]
[White "playerzr"]
[Black "Bigc08"]
[Result "1-0"]
[WhiteElo "1896"]
[BlackElo "1946"]
[TimeControl "180+2"]
[EndTime "12:29:07 PST"]
[Termination "playerzr won by resignation"]

1. d4 {[%clk 0:03:00]} 1... Nf6 {[%clk 0:02:58.8]} 2. c4 {[%clk 0:03:00.7]} 2...
e6 {[%clk 0:03:00]} 3. g3 {[%clk 0:03:01]} 3... d5 {[%clk 0:03:00.4]} 4. Bg2
{[%clk 0:03:01.5]} 4... dxc4 {[%clk 0:03:01]} 5. Nf3 {[%clk 0:03:01.6]} 5... Nc6
{[%clk 0:02:59.2]} 6. O-O {[%clk 0:03:01.3]} 6... Be7 {[%clk 0:02:53.8]} 7. Na3
{[%clk 0:03:01.4]} 7... O-O {[%clk 0:02:53.7]} 8. Nxc4 {[%clk 0:03:01.5]} 8...
Bd7 {[%clk 0:02:51.5]} 9. Bf4 {[%clk 0:03:01.8]} 9... Nd5 {[%clk 0:02:50.7]} 10.
Bd2 {[%clk 0:03:00]} 10... Bf6 {[%clk 0:02:43.5]} 11. e4 {[%clk 0:02:56.5]}
11... Nb6 {[%clk 0:02:43]} 12. Nxb6 {[%clk 0:02:51.1]} 12... axb6 {[%clk
0:02:43.6]} 13. Be3 {[%clk 0:02:49.9]} 13... Na5 {[%clk 0:02:44.1]} 14. Qc2
{[%clk 0:02:45.3]} 14... Bb5 {[%clk 0:02:44]} 15. Rfd1 {[%clk 0:02:44.6]} 15...
Nc4 {[%clk 0:02:43.9]} 16. Bf4 {[%clk 0:02:33.3]} 16... g5 {[%clk 0:02:14.6]}
17. Bc1 {[%clk 0:02:04.5]} 17... h6 {[%clk 0:02:11.3]} 18. a4 {[%clk 0:01:59.1]}
18... Ba6 {[%clk 0:02:06]} 19. b3 {[%clk 0:01:46.4]} 19... Na5 {[%clk
0:01:46.9]} 20. Ba3 {[%clk 0:01:36]} 20... Be7 {[%clk 0:01:41.7]} 21. b4 {[%clk
0:01:32.5]} 21... Nc6 {[%clk 0:01:40.4]} 22. b5 {[%clk 0:01:22.3]} 22... Bxa3
{[%clk 0:01:39.3]} 23. bxa6 {[%clk 0:01:19.7]} 23... Be7 {[%clk 0:01:27.9]} 24.
axb7 {[%clk 0:01:19.4]} 1-0

[Event "*** Titled Tuesday 3|2 Blitz"]
[Site "Chess.com"]
[Date "2014.12.30"]
[Round "7"]
[White "Yaacovn"]
[Black "THORK"]
[Result "1-0"]
[WhiteElo "2589"]
[BlackElo "2220"]
[TimeControl "180+2"]
[EndTime "12:30:20 PST"]
[Termination "Yaacovn won by resignation"]

1. d4 {[%clk 0:03:00]} 1... d5 {[%clk 0:02:58.4]} 2. Nf3 {[%clk 0:03:00.9]} 2...
Bf5 {[%clk 0:02:59.5]} 3. c4 {[%clk 0:02:59.2]} 3... e6 {[%clk 0:03:00.8]} 4.
Qb3 {[%clk 0:03:00.1]} 4... Nc6 {[%clk 0:03:02.2]} 5. Bd2 {[%clk 0:03:01.4]}
5... Rb8 {[%clk 0:03:02.8]} 6. Nc3 {[%clk 0:03:02.2]} 6... Nf6 {[%clk
0:03:02.9]} 7. e3 {[%clk 0:03:02.8]} 7... a6 {[%clk 0:02:58.7]} 8. Rc1 {[%clk
0:03:03.5]} 8... dxc4 {[%clk 0:02:58.6]} 9. Bxc4 {[%clk 0:03:02.1]} 9... b5
{[%clk 0:02:57.8]} 10. Be2 {[%clk 0:03:02.3]} 10... Na5 {[%clk 0:02:49.1]} 11.
Qd1 {[%clk 0:03:00.6]} 11... Nb7 {[%clk 0:02:43]} 12. O-O {[%clk 0:03:00.1]}
12... Bd6 {[%clk 0:02:43.8]} 13. Nh4 {[%clk 0:02:58.7]} 13... Bg6 {[%clk
0:02:41.9]} 14. g3 {[%clk 0:02:54.4]} 14... O-O {[%clk 0:02:31.8]} 15. Nxg6
{[%clk 0:02:55.3]} 15... hxg6 {[%clk 0:02:32.9]} 16. e4 {[%clk 0:02:50.1]} 16...
e5 {[%clk 0:02:33.7]} 17. Be3 {[%clk 0:02:34.1]} 17... Re8 {[%clk 0:02:29.1]}
18. dxe5 {[%clk 0:02:29.4]} 18... Bxe5 {[%clk 0:02:29.8]} 19. f3 {[%clk
0:02:28.5]} 19... Nd6 {[%clk 0:02:26.6]} 20. Qc2 {[%clk 0:02:21.9]} 20... Nc4
{[%clk 0:02:25.3]} 21. Bxc4 {[%clk 0:02:22.1]} 21... bxc4 {[%clk 0:02:26.4]} 22.
Rfd1 {[%clk 0:02:23.2]} 22... Qc8 {[%clk 0:02:23.9]} 23. Na4 {[%clk 0:02:21.4]}
23... Qh3 {[%clk 0:01:53.6]} 24. Bf2 {[%clk 0:02:19.2]} 24... Red8 {[%clk
0:01:44.5]} 25. Qxc4 {[%clk 0:02:17.6]} 25... Rxd1+ {[%clk 0:01:45]} 26. Rxd1
{[%clk 0:02:18.8]} 26... g5 {[%clk 0:01:39.5]} 27. b3 {[%clk 0:02:13.9]} 27...
g4 {[%clk 0:01:39.9]} 28. f4 {[%clk 0:02:14.9]} 28... Bxf4 {[%clk 0:01:32.6]}
29. gxf4 {[%clk 0:02:15.9]} 29... g3 {[%clk 0:01:34]} 30. Bxg3 {[%clk
0:02:16.2]} 30... Qg4 {[%clk 0:01:29.7]} 31. Rf1 {[%clk 0:02:14.4]} 31... Rd8
{[%clk 0:01:28.3]} 32. Nc3 {[%clk 0:02:09.9]} 32... Rd2 {[%clk 0:01:29.2]} 33.
Rf2 {[%clk 0:02:09.2]} 33... Rxf2 {[%clk 0:00:43.6]} 34. Kxf2 {[%clk 0:02:09.5]}
34... Qh5 {[%clk 0:00:45.3]} 35. Qd4 {[%clk 0:02:09.3]} 35... c5 {[%clk
0:00:43]} 36. Qd1 {[%clk 0:02:08]} 36... Qh3 {[%clk 0:00:42.2]} 37. Qf3 {[%clk
0:02:08.6]} 37... Qd7 {[%clk 0:00:41.2]} 38. Nd5 {[%clk 0:02:09.6]} 38... Ng4+
{[%clk 0:00:40.1]} 39. Kg2 {[%clk 0:02:10.2]} 39... f5 {[%clk 0:00:36.9]} 40.
exf5 {[%clk 0:02:09.1]} 40... Qxd5 {[%clk 0:00:37.6]} 41. Qxd5+ {[%clk
0:02:10.5]} 1-0

[Event "*** Titled Tuesday 3|2 Blitz"]
[Site "Chess.com"]
[Date "2014.12.30"]
[Round "7"]
[White "Tilicheev_Viacheslav"]
[Black "UnPolarizing"]
[Result "1/2-1/2"]
[WhiteElo "2398"]
[BlackElo "2254"]
[TimeControl "180+2"]
[EndTime "12:30:32 PST"]
[Termination "Game drawn by agreement"]

1. e4 {[%clk 0:03:00]} 1... e6 {[%clk 0:02:58.3]} 2. d4 {[%clk 0:03:00.6]} 2...
d5 {[%clk 0:02:56.6]} 3. Nd2 {[%clk 0:03:00.7]} 3... c5 {[%clk 0:02:57.4]} 4.
exd5 {[%clk 0:02:57.6]} 4... Qxd5 {[%clk 0:02:58.1]} 5. dxc5 {[%clk 0:02:56.6]}
5... Nf6 {[%clk 0:02:57]} 6. Ngf3 {[%clk 0:02:56]} 6... Bxc5 {[%clk 0:02:58.2]}
7. Bc4 {[%clk 0:02:56.2]} 7... Qd8 {[%clk 0:02:58.8]} 8. b3 {[%clk 0:02:47.5]}
8... O-O {[%clk 0:02:59.5]} 9. Bb2 {[%clk 0:02:48.4]} 9... Nc6 {[%clk 0:02:58]}
10. Qe2 {[%clk 0:02:46.7]} 10... Qe7 {[%clk 0:02:57.9]} 11. O-O-O {[%clk
0:02:46.9]} 11... Rd8 {[%clk 0:02:56.9]} 12. Ne4 {[%clk 0:02:42.5]} 12... Nxe4
{[%clk 0:02:58]} 13. Qxe4 {[%clk 0:02:44.4]} 13... Bd7 {[%clk 0:02:54.3]} 14.
Bd3 {[%clk 0:02:41.4]} 14... g6 {[%clk 0:02:48.9]} 15. Kb1 {[%clk 0:02:33.8]}
15... Nb4 {[%clk 0:02:33.5]} 16. Qe5 {[%clk 0:02:20.9]} 16... f6 {[%clk
0:02:25.1]} 17. Qxf6 {[%clk 0:02:20.9]} 17... Qxf6 {[%clk 0:02:26.7]} 18. Bxf6
{[%clk 0:02:22.5]} 18... Rf8 {[%clk 0:02:24.7]} 19. Bc4 {[%clk 0:01:03.1]} 19...
Rxf6 {[%clk 0:02:09.5]} 20. Rxd7 {[%clk 0:01:02.8]} 20... a6 {[%clk 0:02:07.4]}
21. Rxb7 {[%clk 0:01:01.6]} 21... Rd8 {[%clk 0:02:00]} 22. a3 {[%clk 0:01:02]}
22... Nd5 {[%clk 0:01:59.1]} 23. Bxa6 {[%clk 0:00:47.2]} 23... Bxa3 {[%clk
0:01:56.4]} 24. c4 {[%clk 0:00:21.8]} 24... Nf4 {[%clk 0:01:43.9]} 25. Kc2
{[%clk 0:00:17.7]} 25... Rf5 {[%clk 0:01:36.9]} 26. Rd1 {[%clk 0:00:17.4]} 26...
Rxd1 {[%clk 0:01:34.9]} 27. Kxd1 {[%clk 0:00:19.3]} 27... Nxg2 {[%clk
0:01:34.8]} 1/2-1/2